fUST/lending_fUST_20251010
["ID","MTS","AMOUNT","RATE_DAILY","PERIOD"]
[390516868,1760069449085,-500.0,0.00016986,2]
[390516869,1760069449094,-500.0,0.00016986,2]
[390516870,1760069449103,-500.0,0.00016986,2]
[390516871,1760069449112,-1047.0,0.00016986,2]
[390516872,1760069449123,-500.0,0.00016986,2]
[390516873,1760069449132,-500.0,0.00016986,2]
[390516874,1760069449142,-1198.02,0.00016986,2]
[390516875,1760069449151,-500.0,0.00016986,2]
[390516876,1760069449161,-500.0,0.00016986,2]
[390516877,1760069449170,-160.934717,0.00016986,2]
[390516878,1760069449180,-500.0,0.00016986,2]
[390516879,1760069449189,-240.5526988,0.00016986,2]
[390516880,1760069449198,-500.0,0.00016986,2]
[390516881,1760069449208,-500.0,0.00016986,2]
[390516882,1760069449218,-151.0,0.00016986,2]
[390516883,1760069449228,-151.0,0.00016986,2]
[390516884,1760069449237,-501.49543512,0.00016986,2]
[390516885,1760069449246,-500.0,0.00016986,2]
[390516886,1760069449255,-252.52752145,0.00016986,2]
[390516887,1760069449264,-500.0,0.00016986,2]
[390516888,1760069449274,-500.0,0.00016986,2]
[390516889,1760069449283,-500.0,0.00016986,2]
[390516890,1760069449293,-1083.85,0.00016986,2]
[390516891,1760069449302,-500.0,0.00016986,2]
[390516892,1760069449311,-500.0,0.00016986,2]
[390516893,1760069449321,-500.0,0.00016986,2]
[390516894,1760069449330,-500.0,0.00016986,2]
[390516895,1760069449340,-500.0,0.00016986,2]
[390516896,1760069449349,-500.0,0.00016986,2]
[390516897,1760069449359,-895.59,0.00016986,2]
[390516898,1760069449368,-299.92701937,0.00016986,2]
[390516899,1760069449379,-500.0,0.00016986,2]
[390516900,1760069449389,-500.0,0.00016986,2]
[390516901,1760069449398,-500.0,0.00016986,2]
[390516902,1760069449408,-583.71909316,0.00016986,2]
[390516903,1760069449417,-500.0,0.00016986,2]
[390516904,1760069449427,-500.0,0.00016986,2]
[390516905,1760069449437,-529.63,0.00016986,2]
[390516906,1760069449447,-500.0,0.00016986,2]
[390516907,1760069449456,-500.0,0.00016986,2]
[390516908,1760069449466,-500.0,0.00016986,2]
[390516909,1760069449479,-500.0,0.00016986,2]
[390516910,1760069449489,-487.99195088,0.00016986,2]
[390516911,1760069449498,-500.0,0.00016986,2]
[390516912,1760069449508,-500.0,0.00016986,2]
[390516913,1760069449519,-500.0,0.00016986,2]
[390516914,1760069449528,-500.0,0.00016986,2]
[390516915,1760069449538,-500.0,0.00016986,2]
[390516916,1760069449548,-503.04335802,0.00016986,2]
[390516917,1760069449558,-500.0,0.00016986,2]
[390516918,1760069449568,-500.0,0.00016986,2]
[390516919,1760069449716,-500.0,0.00016986,2]
[390516920,1760069449725,-500.0,0.00016986,2]
[390516921,1760069449734,-500.0,0.00016986,2]
[390516922,1760069449743,-500.0,0.00016986,2]
[390516923,1760069449752,-500.0,0.00016986,2]
[390516924,1760069449761,-500.0,0.00016986,2]
[390516925,1760069449770,-500.0,0.00016986,2]
[390516926,1760069449779,-500.0,0.00016986,2]
[390516927,1760069449789,-232.65951247,0.00016986,2]
[390516928,1760069449798,-500.0,0.00016986,2]
[390516929,1760069449807,-500.0,0.00016986,2]
[390516930,1760069449816,-500.0,0.00016986,2]
[390516931,1760069449825,-500.0,0.00016986,2]
[390516933,1760069449834,-504.02659231,0.00016986,2]
[390516934,1760069449844,-500.0,0.00016986,2]
[390516935,1760069449853,-901.85,0.00016986,2]
[390516936,1760069449862,-500.0,0.00016986,2]
[390516937,1760069449871,-500.0,0.00016986,2]
[390516938,1760069449880,-152.031456,0.00016986,2]
[390516939,1760069449889,-500.0,0.00016986,2]
[390516940,1760069449898,-500.0,0.00016986,2]
[390516941,1760069449907,-1250.35,0.00016986,2]
[390516942,1760069449916,-151.0,0.00016986,2]
[390516943,1760069449924,-151.0,0.00016986,2]
[390516944,1760069449934,-1192.15,0.00016986,2]
[390516945,1760069449944,-500.0,0.00016986,2]
[390516946,1760069449953,-500.0,0.00016986,2]
[390516948,1760069449962,-500.0,0.00016986,2]
[390516950,1760069449971,-500.0,0.00016986,2]
[390516952,1760069449980,-500.0,0.00016986,2]
[390516954,1760069449989,-500.0,0.00016986,2]
[390516956,1760069449998,-500.0,0.00016986,2]
[390516957,1760069450007,-151.0,0.00016986,2]
[390516958,1760069450016,-154.856397,0.00016986,2]
[390516959,1760069450024,-500.0,0.00016986,2]
[390516960,1760069450034,-948.55,0.00016986,2]
[390516961,1760069450043,-7197.48,0.00016986,2]
[390516963,1760069450052,-151.0,0.00016986,2]
[390516965,1760069450061,-151.0,0.00016986,2]
[390516967,1760069450070,-151.0,0.00016986,2]
[390516969,1760069450079,-206.107839,0.00016986,2]
[390516971,1760069450087,-500.0,0.00016986,2]
[390516973,1760069450096,-500.0,0.00016986,2]
[390516975,1760069450105,-500.0,0.00016986,2]
[390516977,1760069450114,-500.0,0.00016986,2]
[390516979,1760069450122,-500.0,0.00016986,2]
[390516980,1760069450131,-500.0,0.00016986,2]
[390516981,1760069450140,-500.0,0.00016986,2]
[390516982,1760069450149,-500.0,0.00016986,2]
[390516983,1760069450158,-500.0,0.00016986,2]
[390516984,1760069450167,-500.0,0.00016986,2]
[390516985,1760069450176,-661.71,0.00016986,2]
[390516986,1760069450186,-505.23165234,0.00016986,2]
[390516987,1760069450194,-500.0,0.00016986,2]
[390516988,1760069450203,-500.0,0.00016986,2]
[390516989,1760069450212,-470.97150998,0.00016986,2]
[390516990,1760069450221,-123.43629604,0.00016986,2]
[390516991,1760069450639,-500.0,0.00016712,2]
[390516992,1760069450648,-67.26067151,0.00016986,2]
[390516993,1760069450659,-309.30303245,0.00016986,2]
[390516994,1760069450668,-590.69696755,0.00016986,2]
[390516995,1760069450865,250.0,0.00015546,2]
[390516996,1760069450893,-500.0,0.00016437,2]
[390516997,1760069450903,-503.03222366,0.00016438,2]
[390516998,1760069450912,-261.96303245,0.00016986,2]
[390516999,1760069450921,-502.67681775,0.00016986,2]
[390517000,1760069450930,-925.42,0.00016986,2]
[390517001,1760069450939,-337.40792614,0.00016986,2]
[390517035,1760069573367,183.493052,0.00018975,20]
[390517037,1760069616856,354.794357,0.00018975,20]
[390517040,1760069888687,7900.0,0.00024,30]
[390517041,1760069892551,4548.94994962,0.000285,120]
[390517056,1760070151270,169.0,0.00023542,120]
[390517057,1760070152696,169.0,0.00024719,120]
[390517058,1760070154082,169.0,0.00025955,120]
[390517059,1760070155463,169.0,0.00027252,120]
[390517060,1760070156878,169.0,0.00028615,120]
[390517064,1760070217829,342.967878,0.00018975,20]
[390517065,1760070227590,177.376616,0.00018975,20]
[390517180,1760070547784,270.311594,0.00015426,2]
[390517301,1760070638198,-217.418085,0.0001571,2]
[390517303,1760070638209,-56.71274508,0.0001571,2]
[390517306,1760070638226,-368.15890496,0.0001571,2]
[390517308,1760070638235,-711.0,0.00016232,2]
[390517310,1760070638245,-488.60239754,0.0001631,2]
[390517312,1760070638255,-581.47718051,0.00016397,2]
[390517314,1760070638264,-2323.58281331,0.00016397,2]
[390517316,1760070638274,-373.77762189,0.00016397,2]
[390517318,1760070638284,-1495.11048755,0.00016397,2]
[390517320,1760070638293,-3363.99859698,0.00016397,2]
[390517322,1760070638303,-5974.46150824,0.00016397,2]
[390517324,1760070638313,-300.0,0.00016427,2]
[390517326,1760070638323,-368.57,0.00016428,3]
[390517328,1760070638333,-184.28,0.00016428,3]
[390517330,1760070638342,-552.87,0.00016428,3]
[390517332,1760070638351,-2030.296672,0.00016428,2]
[390517356,1760070638362,-195.60154796,0.00016428,2]
[390517358,1760070638576,-18603.8837,0.00016428,2]
[390517360,1760070638586,-151.0,0.00016428,2]
[390517362,1760070638596,-353.2882781,0.00016436,2]
[390517364,1760070638605,-167.88901888,0.00016436,2]
[390517366,1760070638615,-213.1012508,0.00016437,2]
[390517368,1760070638623,-465.51143278,0.00016437,2]
[390517370,1760070638633,-500.0,0.00016438,2]
[390517372,1760070638642,-500.0,0.00016438,2]
[390517374,1760070638651,-500.0,0.00016438,2]
[390517376,1760070638660,-525.99772976,0.00016438,2]
[390517378,1760070638670,-502.30765809,0.00016438,2]
[390517380,1760070638679,-624.76,0.00016438,2]
[390517382,1760070638688,-500.0,0.00016438,2]
[390517384,1760070638697,-500.0,0.00016438,2]
[390517386,1760070638706,-500.0,0.00016438,2]
[390517388,1760070638715,-500.0,0.00016438,2]
[390517390,1760070638724,-500.0,0.00016438,2]
[390517393,1760070638734,-500.0,0.00016438,2]
[390517395,1760070638754,-500.0,0.00016438,2]
[390517397,1760070638764,-500.0,0.00016438,2]
[390517399,1760070638774,-500.0,0.00016438,2]
[390517402,1760070638784,-500.99212781,0.00016438,2]
[390517404,1760070638793,-500.0,0.00016438,2]
[390517406,1760070638803,-500.0,0.00016438,2]
[390517408,1760070638814,-500.0,0.00016438,2]
[390517410,1760070638824,-500.0,0.00016438,2]
[390517412,1760070638834,-500.0,0.00016438,2]
[390517414,1760070638844,-500.0,0.00016438,2]
[390517416,1760070638854,-500.0,0.00016438,2]
[390517418,1760070638864,-500.0,0.00016438,2]
[390517420,1760070638876,-500.0,0.00016438,2]
[390517422,1760070638887,-500.0,0.00016438,2]
[390517424,1760070638897,-500.0,0.00016438,2]
[390517426,1760070638906,-500.0,0.00016438,2]
[390517429,1760070638917,-500.0,0.00016438,2]
[390517431,1760070638927,-501.84305985,0.00016438,2]
[390517433,1760070638936,-500.0,0.00016438,2]
[390517435,1760070638947,-500.0,0.00016438,2]
[390517437,1760070638958,-500.0,0.00016438,2]
[390517439,1760070638968,-500.0,0.00016438,2]
[390517441,1760070638979,-500.0,0.00016438,2]
[390517443,1760070638989,-500.0,0.00016438,2]
[390517445,1760070638998,-500.0,0.00016438,2]
[390517447,1760070639008,-500.0,0.00016438,2]
[390517449,1760070639017,-500.0,0.00016438,2]
[390517451,1760070639027,-501.49135415,0.00016438,2]
[390517453,1760070639036,-500.0,0.00016438,2]
[390517455,1760070639046,-214.40020945,0.00016438,2]
[390517457,1760070639056,-500.0,0.00016438,2]
[390517460,1760070639066,-500.0,0.00016438,2]
[390517462,1760070639075,-501.68338757,0.00016438,2]
[390517464,1760070639086,-500.0,0.00016438,2]
[390517466,1760070639096,-502.16497774,0.00016438,2]
[390517468,1760070639106,-500.0,0.00016438,2]
[390517470,1760070639116,-500.0,0.00016438,2]
[390517472,1760070639125,-500.0,0.00016438,2]
[390517474,1760070639135,-507.56,0.00016438,2]
[390517476,1760070639145,-500.0,0.00016438,2]
[390517478,1760070639156,-431.1009717,0.00016438,2]
[390517480,1760070639166,-500.0,0.00016438,2]
[390517482,1760070639175,-500.0,0.00016438,2]
[390517484,1760070639184,-500.0,0.00016438,2]
[390517486,1760070639194,-500.0,0.00016438,2]
[390517488,1760070639203,-500.0,0.00016438,2]
[390517490,1760070639213,-500.0,0.00016438,2]
[390517492,1760070639223,-1198.25,0.00016438,2]
[390517494,1760070639233,-500.0,0.00016438,2]
[390517496,1760070639243,-500.0,0.00016438,2]
[390517498,1760070639252,-500.0,0.00016438,2]
[390517500,1760070639262,-500.0,0.00016438,2]
[390517502,1760070639271,-500.66305719,0.00016438,2]
[390517504,1760070639281,-500.0,0.00016438,2]
[390517506,1760070639291,-500.0,0.00016438,2]
[390517508,1760070639300,-500.0,0.00016438,2]
[390517510,1760070639310,-500.0,0.00016438,2]
[390517512,1760070639320,-502.97479486,0.00016438,2]
[390517514,1760070639330,-500.0,0.00016438,2]
[390517517,1760070639339,-500.0,0.00016438,2]
[390517519,1760070639349,-500.0,0.00016438,2]
[390517521,1760070639359,-500.0,0.00016438,2]
[390517523,1760070639368,-510.22334251,0.00016438,2]
[390517525,1760070639377,-501.82410616,0.00016438,2]
[390517527,1760070639387,-500.0,0.00016438,2]
[390517529,1760070639397,-500.0,0.00016438,2]
[390517531,1760070639407,-502.14845717,0.00016438,2]
[390517533,1760070639416,-500.0,0.00016438,2]
[390517535,1760070639426,-501.29956999,0.00016438,2]
[390517537,1760070639436,-500.0,0.00016438,2]
[390517539,1760070639446,-500.0,0.00016438,2]
[390517541,1760070639455,-500.0,0.00016438,2]
[390517543,1760070639464,-500.0,0.00016438,2]
[390517545,1760070639475,-664.22,0.00016438,2]
[390517547,1760070639484,-199.27098687,0.00016438,2]
[390517549,1760070639493,-500.0,0.00016438,2]
[390517551,1760070639504,-500.0,0.00016438,2]
[390517553,1760070639515,-500.0,0.00016438,2]
[390517555,1760070639524,-1048.82,0.00016438,2]
[390517557,1760070639534,-500.0,0.00016438,2]
[390517560,1760070639544,-500.0,0.00016438,2]
[390517562,1760070639556,-500.0,0.00016438,2]
[390517564,1760070639566,-500.0,0.00016438,2]
[390517566,1760070639575,-500.0,0.00016438,2]
[390517568,1760070639586,-1202.55,0.00016438,2]
[390517570,1760070639595,-500.0,0.00016438,2]
[390517572,1760070639605,-500.0,0.00016438,2]
[390517574,1760070639614,-500.0,0.00016438,2]
[390517576,1760070639624,-500.0,0.00016438,2]
[390517578,1760070639633,-500.0,0.00016438,2]
[390517580,1760070639643,-514.68683796,0.00016438,2]
[390517583,1760070639652,-1064.46,0.00016438,2]
[390517586,1760070639662,-501.60101146,0.00016438,2]
[390517588,1760070639671,-500.0,0.00016438,2]
[390517590,1760070639680,-500.0,0.00016438,2]
[390517592,1760070639689,-898.98,0.00016438,2]
[390517594,1760070639699,-500.0,0.00016438,2]
[390517596,1760070639708,-500.0,0.00016438,2]
[390517598,1760070639717,-501.5660037,0.00016438,2]
[390517600,1760070639726,-1154.17,0.00016438,2]
[390517602,1760070639736,-500.0,0.00016438,2]
[390517604,1760070639745,-500.0,0.00016438,2]
[390517606,1760070639755,-500.0,0.00016438,2]
[390517608,1760070639765,-500.0,0.00016438,2]
[390517610,1760070639776,-482.27098122,0.00016438,2]
[390517612,1760070639785,-500.0,0.00016438,2]
[390517614,1760070639795,-500.0,0.00016438,2]
[390517616,1760070639804,-500.0,0.00016438,2]
[390517618,1760070639813,-501.93488945,0.00016438,2]
[390517621,1760070639824,-500.0,0.00016438,2]
[390517624,1760070639833,-500.0,0.00016438,2]
[390517627,1760070639843,-501.39167991,0.00016438,2]
[390517631,1760070639853,-501.64638071,0.00016438,2]
[390517633,1760070639862,-500.0,0.00016438,2]
[390517637,1760070639872,-500.0,0.00016438,2]
[390517640,1760070639886,-500.0,0.00016438,2]
[390517643,1760070639895,-500.0,0.00016438,2]
[390517647,1760070639905,-500.0,0.00016438,2]
[390517650,1760070639914,-500.0,0.00016438,2]
[390517653,1760070639924,-500.0,0.00016438,2]
[390517656,1760070639934,-500.0,0.00016438,2]
[390517659,1760070639943,-500.0,0.00016438,2]
[390517662,1760070639954,-500.0,0.00016438,2]
[390517665,1760070639963,-500.0,0.00016438,2]
[390517668,1760070639972,-500.0,0.00016438,2]
[390517670,1760070639982,-500.0,0.00016438,2]
[390517672,1760070639991,-500.0,0.00016438,2]
[390517674,1760070640000,-500.0,0.00016438,2]
[390517676,1760070640009,-500.0,0.00016438,2]
[390517678,1760070640018,-500.0,0.00016438,2]
[390517680,1760070640027,-500.0,0.00016438,2]
[390517682,1760070640036,-500.0,0.00016438,2]
[390517684,1760070640045,-501.1665511,0.00016438,2]
[390517686,1760070640055,-500.0,0.00016438,2]
[390517688,1760070640064,-500.0,0.00016438,2]
[390517690,1760070640074,-500.0,0.00016438,2]
[390517692,1760070640083,-905.26,0.00016438,2]
[390517694,1760070640092,-500.0,0.00016438,2]
[390517696,1760070640103,-500.0,0.00016438,2]
[390517698,1760070640112,-500.0,0.00016438,2]
[390517700,1760070640121,-500.0,0.00016438,2]
[390517702,1760070640130,-500.0,0.00016438,2]
[390517704,1760070640139,-500.0,0.00016438,2]
[390517706,1760070640148,-500.0,0.00016438,2]
[390517708,1760070640157,-500.0,0.00016438,2]
[390517710,1760070640166,-501.55696603,0.00016438,2]
[390517712,1760070640175,-500.0,0.00016438,2]
[390517714,1760070640184,-500.0,0.00016438,2]
[390517716,1760070640194,-500.0,0.00016438,2]
[390517718,1760070640203,-501.49770499,0.00016438,2]
[390517720,1760070640212,-500.0,0.00016438,2]
[390517722,1760070640221,-1196.66,0.00016438,2]
[390517724,1760070640230,-500.0,0.00016438,2]
[390517726,1760070640239,-500.0,0.00016438,2]
[390517728,1760070640249,-500.0,0.00016438,2]
[390517730,1760070640258,-500.0,0.00016438,2]
[390517732,1760070640268,-500.0,0.00016438,2]
[390517734,1760070640277,-7224.74,0.00016438,2]
[390517736,1760070640286,-952.14,0.00016438,2]
[390517738,1760070640295,-500.0,0.00016438,2]
[390517740,1760070640304,-500.0,0.00016438,2]
[390517742,1760070640313,-500.0,0.00016438,2]
[390517744,1760070640322,-500.0,0.00016438,2]
[390517746,1760070640331,-500.0,0.00016438,2]
[390517748,1760070640340,-500.0,0.00016438,2]
[390517750,1760070640349,-500.0,0.00016438,2]
[390517752,1760070640358,-500.0,0.00016438,2]
[390517754,1760070640367,-500.0,0.00016438,2]
[390517756,1760070640376,-500.0,0.00016438,2]
[390517758,1760070640385,-423.9287788,0.00016438,2]
[390517760,1760070640395,-500.0,0.00016438,2]
[390517762,1760070640404,-501.2065231,0.00016438,2]
[390517764,1760070640413,-500.0,0.00016438,2]
[390517766,1760070640422,-826.58,0.00016438,2]
[390517768,1760070640431,-500.0,0.00016438,2]
[390517770,1760070640440,-501.05543227,0.00016438,2]
[390517772,1760070640449,-501.89258517,0.00016438,2]
[390517774,1760070640458,-500.0,0.00016438,2]
[390517776,1760070640467,-500.60334351,0.00016438,2]
[390517778,1760070640476,-500.0,0.00016438,2]
[390517780,1760070640485,-500.0,0.00016438,2]
[390517782,1760070640495,-500.0,0.00016438,2]
[390517784,1760070640504,-905.87,0.00016438,2]
[390517786,1760070640513,-500.0,0.00016438,2]
[390517788,1760070640522,-500.0,0.00016438,2]
[390517790,1760070640530,-500.88673706,0.00016438,2]
[390517792,1760070640540,-500.0,0.00016438,2]
[390517794,1760070640549,-500.0,0.00016438,2]
[390517796,1760070640559,-500.0,0.00016438,2]
[390517798,1760070640568,-500.0,0.00016438,2]
[390517800,1760070640577,-500.0,0.00016438,2]
[390517802,1760070640587,-501.36818589,0.00016438,2]
[390517804,1760070640596,-500.0,0.00016438,2]
[390517806,1760070640605,-501.06021249,0.00016438,2]
[390517808,1760070640614,-500.50058322,0.00016438,2]
[390517810,1760070640624,-500.0,0.00016438,2]
[390517812,1760070640633,-500.0,0.00016438,2]
[390517814,1760070640643,-500.0,0.00016438,2]
[390517816,1760070640652,-500.0,0.00016438,2]
[390517818,1760070640661,-501.09598001,0.00016438,2]
[390517820,1760070640670,-502.31385421,0.00016438,2]
[390517822,1760070640682,-500.0,0.00016438,2]
[390517824,1760070640691,-3486.67,0.00016438,2]
[390517826,1760070640700,-500.0,0.00016438,2]
[390517828,1760070640709,-500.0,0.00016438,2]
[390517830,1760070640719,-1535.28,0.00016438,2]
[390517832,1760070640728,-500.0,0.00016438,2]
[390517834,1760070640737,-500.0,0.00016438,2]
[390517836,1760070640746,-820.36,0.00016438,2]
[390517838,1760070640755,-500.0,0.00016438,2]
[390517840,1760070640764,-500.0,0.00016438,2]
[390517842,1760070640773,-500.0,0.00016438,2]
[390517844,1760070640783,-2230.39,0.00016438,2]
[390517846,1760070640792,-632.84,0.00016438,2]
[390517848,1760070640801,-500.0,0.00016438,2]
[390517850,1760070640811,-4945.72,0.00016438,2]
[390517852,1760070640820,-890.37,0.00016438,2]
[390517855,1760070640830,-500.91488947,0.00016438,2]
[390517856,1760070640839,-500.0,0.00016438,2]
[390517857,1760070640847,-500.0,0.00016438,2]
[390517858,1760070640856,-5722.37,0.00016438,2]
[390517859,1760070640865,-502.26101463,0.00016438,2]
[390517860,1760070640878,-500.0,0.00016438,2]
[390517861,1760070640887,-502.44828813,0.00016438,2]
[390517862,1760070640896,-500.0,0.00016438,2]
[390517863,1760070640905,-500.0,0.00016438,2]
[390517864,1760070640915,-500.0,0.00016438,2]
[390517865,1760070640924,-501.96330922,0.00016438,2]
[390517866,1760070640938,-1109.96,0.00016438,2]
[390517867,1760070640946,-3394.74,0.00016438,2]
[390517868,1760070640955,-501.76680069,0.00016438,2]
[390517869,1760070640964,-500.0,0.00016438,2]
[390517870,1760070640974,-500.0,0.00016438,2]
[390517871,1760070640983,-500.0,0.00016438,2]
[390517872,1760070640992,-500.0,0.00016438,2]
[390517873,1760070641001,-772.97,0.00016438,2]
[390517874,1760070641009,-500.0,0.00016438,2]
[390517875,1760070641018,-1086.29,0.00016438,2]
[390517876,1760070641027,-862.84,0.00016438,2]
[390517877,1760070641036,-500.0,0.00016438,2]
[390517878,1760070641045,-500.0,0.00016438,2]
[390517879,1760070641055,-500.0,0.00016438,2]
[390517881,1760070641067,-508.07681541,0.00016438,2]
[390517882,1760070641076,-359.67318463,0.00016438,2]
[390517884,1760070641089,-500.60525948,0.00016438,2]
[390517886,1760070641100,-500.0,0.00016438,2]
[390517889,1760070641109,-500.0,0.00016438,2]
[390517891,1760070641118,-500.0,0.00016438,2]
[390517893,1760070641127,-500.0,0.00016438,2]
[390517895,1760070641136,-500.0,0.00016438,2]
[390517896,1760070641146,-500.0,0.00016438,2]
[390517898,1760070641156,-500.0,0.00016438,2]
[390517901,1760070641165,-500.0,0.00016438,2]
[390517903,1760070641174,-500.0,0.00016438,2]
[390517905,1760070641184,-1004.3,0.00016438,2]
[390517907,1760070641193,-500.0,0.00016438,2]
[390517909,1760070641202,-481.31449246,0.00016438,2]
[390517911,1760070641211,-500.0,0.00016438,2]
[390517913,1760070641220,-500.0,0.00016438,2]
[390517915,1760070641229,-500.0,0.00016438,2]
[390517917,1760070641241,-500.0,0.00016438,2]
[390517918,1760070641252,-500.0,0.00016438,2]
[390517920,1760070641261,-500.0,0.00016438,2]
[390517922,1760070641271,-383.04627743,0.00016438,2]
[390517924,1760070641280,-722.92,0.00016438,2]
[390517926,1760070641290,-501.1690776,0.00016438,2]
[390517928,1760070641298,-500.0,0.00016438,2]
[390517930,1760070641307,-510.52,0.00016438,2]
[390517932,1760070641316,-500.0,0.00016438,2]
[390517934,1760070641325,-500.0,0.00016438,2]
[390517936,1760070641334,-1444.48,0.00016438,2]
[390517938,1760070641343,-500.0,0.00016438,2]
[390517940,1760070641352,-696.07,0.00016438,2]
[390517942,1760070641361,-501.33157775,0.00016438,2]
[390517944,1760070641370,-503.3023207,0.00016438,2]
[390517946,1760070641379,-884.98,0.00016438,2]
[390517948,1760070641388,-500.0,0.00016438,2]
[390517950,1760070641397,-1173.93,0.00016438,2]
[390517952,1760070641406,-500.0,0.00016438,2]
[390517954,1760070641415,-500.0,0.00016438,2]
[390517956,1760070641424,-500.0,0.00016438,2]
[390517958,1760070641434,-500.0,0.00016438,2]
[390517960,1760070641443,-586.92,0.00016438,2]
[390517962,1760070641452,-500.0,0.00016438,2]
[390517964,1760070641461,-500.0,0.00016438,2]
[390517966,1760070641470,-500.0,0.00016438,2]
[390517968,1760070641479,-500.0,0.00016438,2]
[390517970,1760070641488,-500.0,0.00016438,2]
[390517972,1760070641497,-786.66,0.00016438,2]
[390517974,1760070641506,-501.73644491,0.00016438,2]
[390517976,1760070641515,-4033.9,0.00016438,2]
[390517978,1760070641524,-500.0,0.00016438,2]
[390517980,1760070641533,-1339.71,0.00016438,2]
[390517982,1760070641542,-500.0,0.00016438,2]
[390517984,1760070641551,-500.0,0.00016438,2]
[390517986,1760070641560,-501.03965201,0.00016438,2]
[390517988,1760070641570,-500.0,0.00016438,2]
[390517990,1760070641579,-501.66725245,0.00016438,2]
[390517992,1760070641596,-500.0,0.00016438,2]
[390517994,1760070641605,-773.8,0.00016438,2]
[390517996,1760070641613,-500.0,0.00016438,2]
[390517998,1760070641622,-500.0,0.00016438,2]
[390518000,1760070641632,-555.02,0.00016438,2]
[390518002,1760070641641,-500.0,0.00016438,2]
[390518004,1760070641650,-501.79847167,0.00016438,2]
[390518006,1760070641659,-4055.36,0.00016438,2]
[390518008,1760070641668,-500.0,0.00016438,2]
[390518010,1760070641677,-501.09182636,0.00016438,2]
[390518012,1760070641686,-500.0,0.00016438,2]
[390518014,1760070641695,-500.0,0.00016438,2]
[390518016,1760070641704,-500.0,0.00016438,2]
[390518018,1760070641714,-1080.45,0.00016438,2]
[390518020,1760070641723,-500.0,0.00016438,2]
[390518022,1760070641733,-501.18658578,0.00016438,2]
[390518024,1760070641742,-500.0,0.00016438,2]
[390518026,1760070641751,-500.0,0.00016438,2]
[390518028,1760070641760,-509.80328601,0.00016438,2]
[390518030,1760070641770,-2898.18,0.00016438,2]
[390518032,1760070641779,-501.93253675,0.00016438,2]
[390518034,1760070641788,-500.0,0.00016438,2]
[390518036,1760070641797,-500.0,0.00016438,2]
[390518038,1760070641806,-500.0,0.00016438,2]
[390518040,1760070641816,-500.0,0.00016438,2]
[390518042,1760070641825,-541.93,0.00016438,2]
[390518044,1760070641835,-500.0,0.00016438,2]
[390518046,1760070641844,-2004.02,0.00016438,2]
[390518048,1760070641853,-500.0,0.00016438,2]
[390518050,1760070641863,-500.0,0.00016438,2]
[390518052,1760070641873,-500.0,0.00016438,2]
[390518054,1760070641886,-502.33835754,0.00016438,2]
[390518056,1760070641895,-500.67279678,0.00016438,2]
[390518058,1760070641904,-500.0,0.00016438,2]
[390518060,1760070641913,-500.0,0.00016438,2]
[390518062,1760070641925,-502.13180974,0.00016438,2]